bitfinex-derivatives/quotes_SOLF0:USTF0_20241024
["timestamp","ask_amount","ask_price","bid_price","bid_amount"]
[1729807294103,2.8042,178.38,178.37,7.77399684]
[1729807295105,7.77399684,178.38,178.31,4.4]
[1729807295289,7.77399684,178.38,178.33,7.77399684]
[1729807295700,2.8048,178.35,178.33,7.77399684]
[1729807296203,1.2283,178.41,178.33,7.77399684]
[1729807296397,7.77399684,178.39,178.32,4.4]
[1729807296605,7.77399684,178.4,178.35,7.77399684]
[1729807297492,7.77399684,178.39,178.35,7.77399684]
[1729807297697,7.77399684,178.39,178.32,4.4]
[1729807297898,7.77399684,178.39,178.33,7.77399684]
[1729807298502,7.77399684,178.39,178.32,4.4]
[1729807298703,7.77399684,178.39,178.34,7.77399684]
[1729807298902,2.8047,178.35,178.34,7.77399684]
[1729807302800,2.8047,178.36,178.34,7.77399684]
[1729807303804,7.77399684,178.4,178.34,7.77399684]
[1729807303997,2.8047,178.35,178.34,7.77399684]
[1729807304408,2.60835903,178.57,178.34,7.77399684]
[1729807304606,7.77399684,178.49,178.41,7.77399684]
[1729807304800,7.77399684,178.49,178.43,7.77399684]
[1729807305707,7.77399684,178.49,178.41,4.4]
[1729807305909,7.77399684,178.49,178.43,7.77399684]
[1729807306409,4.4,178.53,178.41,7.77399684]
[1729807306410,7.77399684,178.46,178.41,7.77399684]
[1729807306617,2.8036,178.42,178.38,2.8041]
[1729807306914,7.77399684,178.46,178.4,7.77399684]
[1729807307304,2.8032,178.45,178.41,7.77399684]
[1729807307614,1.2694,178.48,178.41,7.77399684]
[1729807307811,9.04339684,178.48,178.41,7.77399684]
[1729807308114,7.77399684,178.46,178.41,7.77399684]
[1729807308909,5.26646741,178.56,178.4,4.4]
[1729807309211,7.77399684,178.53,178.47,7.77399684]
[1729807309801,7.77399684,178.52,178.46,4.4]
[1729807310002,1.1615,178.51,178.45,7.77399684]
[1729807310422,1.1615,178.51,178.44,4.4]
[1729807310906,4.4,178.54,178.44,4.4]
[1729807311109,2.8028,178.48,178.44,4.4]
[1729807311509,2.8028,178.47,178.44,4.4]
[1729807311704,12.10765948,178.55,178.44,4.4]
[1729807311909,566.0,178.83,178.47,12.10765948]
[1729807311910,12.10765948,178.59,178.47,12.10765948]
[1729807312219,2.8025,178.49,178.48,4.4]
[1729807312411,2.8025,178.49,178.45,12.10765948]
[1729807312605,2.8025,178.49,178.47,4.4]
[1729807313005,3.7108,178.55,178.46,4.4]
[1729807313413,2.8023,178.51,178.46,4.4]
[1729807313616,12.10765948,178.54,178.46,4.4]
[1729807314014,2.8026,178.49,178.46,4.4]
[1729807316118,2.8027,178.48,178.45,12.10765948]
[1729807316317,2.8027,178.48,178.45,16.50765948]
[1729807317109,12.10765948,178.54,178.45,16.50765948]
[1729807317320,2.8027,178.48,178.45,16.50765948]
[1729807317512,2.8027,178.48,178.45,12.10765948]
[1729807317722,2.803,178.46,178.45,4.4]
[1729807317918,2.803,178.46,178.42,16.50765948]
[1729807318116,2.803,178.46,178.42,19.31125948]
[1729807318518,4.4,178.52,178.42,16.50765948]
[1729807318519,16.50765948,178.52,178.42,16.50765948]
[1729807319216,2.8031,178.45,178.42,16.50765948]
[1729807319622,16.50765948,178.52,178.42,16.50765948]
[1729807319824,2.803,178.46,178.42,19.31125948]
[1729807321130,2.803,178.46,178.42,14.91125948]
[1729807321327,2.803,178.46,178.43,4.38]
[1729807321727,4.4,178.52,178.43,4.38]
[1729807322024,2.8029,178.47,178.43,4.38]
[1729807322821,2.8029,178.47,178.43,7.1834]
[1729807325924,2.8024,178.5,178.43,4.38]
[1729807326129,4.4,178.52,178.43,4.38]
[1729807326524,2.8029,178.47,178.43,4.38]
[1729807327121,2.8033,178.44,178.43,4.38]
[1729807328028,2.8033,178.44,178.42,12.10765948]
[1729807329126,12.10765948,178.49,178.4,16.48765948]
[1729807329326,1.1935,178.48,178.4,16.48765948]
[1729807330526,2.8035,178.43,178.4,16.48765948]
[1729807331733,2.8036,178.42,178.4,16.48765948]
[1729807332237,2.8036,178.42,178.41,7.7522732]
[1729807333038,12.1322732,178.47,178.32,1.2136]
[1729807333224,12.1322732,178.47,178.41,7.7522732]
[1729807333429,7.7522732,178.46,178.41,7.7522732]
[1729807334231,2.8036,178.42,178.41,7.7522732]
[1729807335139,7.7522732,178.46,178.39,7.7522732]
[1729807335440,2.8039,178.4,178.39,7.7522732]
[1729807335736,7.7522732,178.44,178.39,7.7522732]
[1729807335941,2.8039,178.4,178.39,7.7522732]
[1729807342736,7.7522732,178.44,178.36,2.8045]
[1729807342942,2.8041,178.39,178.36,2.8045]
[1729807344945,6.7794,178.47,178.38,7.7522732]
[1729807345140,6.7794,178.47,178.41,7.7522732]
[1729807345343,4.38,178.46,178.42,7.7522732]
[1729807345935,12.1322732,178.46,178.41,7.7522732]
[1729807347445,2.8036,178.42,178.41,7.7522732]
[1729807351540,12.1322732,178.46,178.39,7.7522732]
[1729807351541,2.8039,178.4,178.39,7.7522732]
[1729807355248,1.1935,178.48,178.39,7.7522732]
[1729807355550,2.8025,178.49,178.47,7.7522732]
[1729807355746,7.7522732,178.53,178.47,7.7522732]
[1729807355947,2.8026,178.49,178.47,7.7522732]
[1729807356449,7.7522732,178.53,178.48,7.7522732]
[1729807356647,3.5503,178.54,178.5,7.7522732]
[1729807356851,7.7522732,178.51,178.46,7.7522732]
[1729807357148,2.8028,178.47,178.46,7.7522732]
[1729807357550,3.5503,178.54,178.46,7.7522732]
[1729807357853,7.7522732,178.56,178.5,7.7522732]
[1729807358344,2.8022,178.51,178.5,7.7522732]
[1729807361461,2.8028,178.47,178.46,4.38]
[1729807361755,2.8028,178.47,178.45,7.7522732]
[1729807362151,7.7522732,178.51,178.45,7.7522732]
[1729807362359,2.803,178.46,178.45,7.7522732]
[1729807363564,2.8028,178.47,178.45,7.7522732]
[1729807364563,2.803,178.46,178.45,7.7522732]
[1729807364958,7.7522732,178.5,178.41,2.8036]
[1729807365267,2.8031,178.45,178.42,4.38]
[1729807365863,2.8033,178.44,178.43,7.7522732]
[1729807366965,2.8034,178.43,178.42,4.38]
[1729807367266,2.8034,178.43,178.42,12.1322732]
[1729807368356,2.8034,178.43,178.42,4.38]
[1729807368563,2.8034,178.43,178.42,12.1322732]
[1729807368867,2.8034,178.43,178.42,7.7522732]
[1729807369275,2.3764,178.51,178.42,7.7522732]
[1729807369467,14.5086732,178.51,178.46,7.7522732]
[1729807370071,2.8028,178.47,178.46,7.7522732]
[1729807372558,14.5086732,178.51,178.47,2.8028]
[1729807372559,2.8023,178.51,178.47,2.8028]
[1729807372863,5.6015,178.61,178.49,7.7522732]
[1729807372864,7.7522732,178.55,178.49,7.7522732]
[1729807373264,2.8018,178.54,178.49,7.7522732]
[1729807373466,7.7522732,178.55,178.49,7.7522732]
[1729807374276,1.1569,178.61,178.51,7.7522732]
[1729807374470,7.7522732,178.57,178.51,7.7522732]
[1729807374675,2.8019,178.53,178.51,7.7522732]
[1729807375771,2.802,178.52,178.51,7.7522732]
[1729807381969,7.7522732,178.52,178.45,4.38]
[1729807382170,7.7522732,178.52,178.47,7.7522732]
[1729807382676,7.7522732,178.54,178.49,7.7522732]
[1729807382973,10.2104732,178.56,178.45,4.38]
[1729807383178,10.2104732,178.56,178.5,7.7522732]
[1729807383479,5.2104732,178.56,178.5,7.7522732]
[1729807383777,2.8023,178.51,178.5,2.7522732]
[1729807384181,3.0127732,178.56,178.5,2.7522732]
[1729807384577,3.0127732,178.56,178.49,4.38]
[1729807384578,3.0127732,178.56,178.49,2.1322732]
[1729807384879,2.8023,178.5,178.49,9.8845464]
[1729807385281,2.8023,178.5,178.49,9.2645464]
[1729807385669,7.9948732,178.59,178.49,4.38]
[1729807385876,7.7522732,178.56,178.5,7.7522732]
[1729807386074,7.7522732,178.56,178.49,12.1322732]
[1729807386273,2.8023,178.51,178.49,12.1322732]
[1729807386473,7.7522732,178.56,178.49,12.1322732]
[1729807386474,5.5545732,178.56,178.49,12.1322732]
[1729807386870,5.5545732,178.56,178.49,11.5122732]
[1729807387384,7.9948732,178.59,178.49,11.5122732]
[1729807387385,2.8023,178.51,178.49,11.5122732]
[1729807387680,2.8023,178.51,178.49,6.5122732]
[1729807388084,5.5545732,178.55,178.49,6.5122732]
[1729807388576,5.5545732,178.55,178.49,1.5122732]
[1729807389085,0.5545732,178.55,178.49,1.5122732]
[1729807389276,0.5545732,178.55,178.48,4.38]
[1729807389471,2.396,178.58,178.48,12.1322732]
[1729807389780,7.9948732,178.59,178.48,12.1322732]
[1729807389781,2.8021,178.52,178.5,7.7522732]
[1729807389983,2.8021,178.52,178.5,2.7522732]
[1729807390288,1.1569,178.61,178.51,7.7522732]
[1729807390485,7.7522732,178.57,178.51,7.7522732]
[1729807390673,7.7522732,178.57,178.51,2.7522732]
[1729807390979,2.8018,178.54,178.52,4.38]
[1729807391177,4.38,178.61,178.52,4.38]
[1729807391371,7.7522732,178.55,178.48,1.245]
[1729807391572,7.7522732,178.55,178.48,12.7572732]
[1729807391769,2.8023,178.51,178.48,12.7572732]
[1729807391974,7.7522732,178.55,178.48,12.7572732]
[1729807391975,2.7522732,178.55,178.48,12.7572732]
[1729807392483,2.7522732,178.55,178.49,7.7522732]
[1729807392675,3.3026732,178.61,178.49,7.7522732]
[1729807392874,2.8023,178.51,178.49,7.7522732]
[1729807393076,3.3026732,178.61,178.5,2.7522732]
[1729807393276,7.7522732,178.56,178.5,2.7522732]
[1729807393479,7.7522732,178.57,178.52,7.7522732]
[1729807393676,5.6003,178.65,178.53,7.7522732]
[1729807393982,2.8011,178.58,178.56,7.7522732]
[1729807394183,5.5533732,178.62,178.56,7.7522732]
[1729807394784,7.7522732,178.6,178.55,7.7522732]
[1729807395180,2.801,178.59,178.55,2.7522732]
[1729807395480,5.5532732,178.6,178.55,2.7522732]
[1729807395681,7.7522732,178.58,178.53,12.1322732]
[1729807395885,7.7522732,178.58,178.53,11.5122732]
[1729807396072,1.2618,178.63,178.53,7.1322732]
[1729807396277,7.7522732,178.57,178.52,4.38]
[1729807397179,7.7522732,178.57,178.51,7.1322732]
[1729807397581,2.7522732,178.57,178.51,7.1322732]
[1729807397983,7.7522732,178.58,178.53,2.7522732]
[1729807398189,2.8017,178.55,178.53,2.7522732]
[1729807398484,5.5539732,178.58,178.5,8.4126]
[1729807398687,5.5539732,178.58,178.53,2.7522732]
[1729807398885,7.7522732,178.59,178.54,7.7522732]
[1729807399182,5.5540732,178.58,178.53,7.7522732]
[1729807399484,5.5540732,178.58,178.53,2.7522732]
[1729807399790,0.5540732,178.58,178.53,2.7522732]
[1729807399988,0.5540732,178.58,178.5,4.0326]
[1729807399989,2.8021,178.52,178.5,4.38]
[1729807400290,1.1823,178.6,178.5,7.1322732]
[1729807400490,2.7522732,178.56,178.5,7.1322732]
[1729807400691,2.802,178.52,178.51,7.7522732]
[1729807400888,7.7522732,178.56,178.51,2.7522732]
[1729807401195,7.7522732,178.59,178.54,7.7522732]
[1729807401492,2.7522732,178.57,178.52,7.7522732]
[1729807401892,2.7522732,178.57,178.52,2.7522732]
[1729807402995,2.8016,178.55,178.52,2.7522732]
[1729807403181,2.8016,178.55,178.49,5.5524]
[1729807403386,2.8016,178.55,178.52,7.7522732]
[1729807403592,5.5538732,178.57,178.52,7.7522732]
[1729807403885,5.5538732,178.57,178.52,2.7522732]
[1729807404285,2.8016,178.55,178.52,2.7522732]
[1729807404791,3.3554732,178.57,178.52,2.7522732]
[1729807405293,3.3554732,178.57,178.49,5.5524]
[1729807405596,3.3145732,178.61,178.51,7.7522732]
[1729807405597,1.6700464,178.61,178.51,7.7522732]
[1729807405787,1.6700464,178.61,178.51,2.7522732]
[1729807405984,7.7522732,178.56,178.51,2.7522732]
[1729807406189,2.7522732,178.56,178.51,2.7522732]
[1729807406384,2.8019,178.53,178.5,7.7522732]
[1729807406593,1.6700464,178.61,178.5,7.7522732]
[1729807406890,7.7522732,178.53,178.41,3.93450682]
[1729807407094,7.7522732,178.51,178.46,7.7522732]
[1729807407398,7.7522732,178.51,178.46,12.1322732]
[1729807408096,7.7522732,178.51,178.46,7.1322732]
[1729807408488,2.7522732,178.51,178.46,7.1322732]
[1729807408693,2.8026,178.49,178.47,7.7522732]
[1729807409497,2.8026,178.49,178.47,2.7522732]
[1729807410403,0.5548732,178.51,178.47,2.7522732]
[1729807410898,7.7522732,178.49,178.44,7.1322732]
[1729807411200,2.7522732,178.49,178.44,7.1322732]
[1729807411694,2.7522732,178.49,178.44,2.1322732]
[1729807412000,3.3084732,178.56,178.44,2.1322732]
[1729807412197,2.8029,178.47,178.45,7.7522732]
[1729807412397,2.8029,178.47,178.45,2.7522732]
[1729807412794,5.5551732,178.51,178.45,3.8734432]
[1729807412994,5.5551732,178.51,178.42,7.2923432]
[1729807413196,2.8029,178.47,178.45,7.7522732]
[1729807413500,3.3580732,178.51,178.45,8.8526032]
[1729807413800,3.3580732,178.51,178.45,3.8526032]
[1729807414000,7.7522732,178.5,178.45,3.8526032]
[1729807414196,5.5551732,178.5,178.45,3.8526032]
[1729807414597,5.5551732,178.5,178.43,3.2326032]
[1729807414795,2.8029,178.47,178.45,7.7522732]
[1729807414995,3.3580732,178.5,178.45,7.7522732]
[1729807415500,3.3580732,178.5,178.45,3.8525432]
[1729807415701,1.6665464,178.56,178.45,3.8525432]
[1729807415902,7.7522732,178.5,178.45,3.8525432]
[1729807416104,2.8029,178.47,178.43,2.0851464]
[1729807416402,2.8029,178.47,178.45,7.7522732]
[1729807416603,1.6665464,178.56,178.43,3.1854164]
[1729807416800,7.7522732,178.5,178.45,7.7522732]
[1729807416995,1.6665464,178.56,178.45,1.10027]
[1729807417203,5.5551732,178.5,178.45,8.8525432]
[1729807417597,5.5551732,178.5,178.45,3.8525432]
[1729807417797,5.5551732,178.5,178.43,2.0851464]
[1729807417999,1.2369,178.55,178.43,2.0851464]
[1729807418000,2.8034,178.44,178.43,1.10027]
[1729807418201,7.7522732,178.47,178.43,1.12123]
[1729807418412,7.7522732,178.44,178.39,7.7522732]
[1729807418604,7.7522732,178.43,178.39,1.12151]
[1729807418905,7.7522732,178.44,178.39,8.8737832]
[1729807419305,2.7522732,178.44,178.39,8.8526032]
[1729807419699,2.8039,178.4,178.39,1.10033]
[1729807420204,1.2369,178.47,178.39,8.8526032]
[1729807420401,7.7522732,178.46,178.4,7.7522732]
[1729807420602,2.8032,178.45,178.4,7.7522732]
[1729807420804,7.7522732,178.46,178.4,8.8526032]
[1729807421112,7.7522732,178.46,178.4,3.8526032]
[1729807421303,2.7522732,178.46,178.4,3.8526032]
[1729807421701,7.7522732,178.44,178.39,3.8526032]
[1729807422103,2.7522732,178.44,178.39,4.9528132]
[1729807422407,7.7522732,178.43,178.39,1.10021]
[1729807422797,2.8039,178.41,178.39,1.10021]
[1729807423307,2.8027,178.48,178.43,2.8033]
[1729807423508,14.6413732,178.51,178.45,7.7522732]
[1729807423709,14.6413732,178.51,178.46,7.7522732]
[1729807423902,14.6413732,178.51,178.46,2.7522732]
[1729807424103,14.6413732,178.51,178.46,3.8525132]
[1729807424300,9.6413732,178.51,178.46,3.8525132]
[1729807424606,7.7522732,178.5,178.46,1.10024]
[1729807424806,7.7522732,178.5,178.45,3.8525132]
[1729807425002,7.7522732,178.5,178.45,4.9526632]
[1729807425202,2.7522732,178.5,178.45,4.9526632]
[1729807425398,2.8028,178.48,178.45,4.9526632]
[1729807425605,2.8028,178.48,178.46,7.7522732]
[1729807425805,2.8028,178.48,178.46,8.8524232]
[1729807426002,7.4441732,178.51,178.46,8.8524232]
[1729807426408,7.4441732,178.51,178.46,3.8524232]
[1729807427209,2.4441732,178.51,178.46,3.8524232]
[1729807427601,2.4441732,178.51,178.41,5.6698232]
[1729807428006,0.2470732,178.51,178.45,7.7522732]
[1729807428517,7.7522732,178.47,178.45,1.10024]
[1729807428812,7.7522732,178.47,178.44,1.12154]
[1729807429110,1.2383,178.51,178.44,1.12154]
[1729807429307,7.7522732,178.47,178.4,1.69741]
[1729807429515,7.7522732,178.47,178.42,7.7522732]
[1729807429708,2.7522732,178.47,178.42,8.8736232]
[1729807429908,2.7522732,178.47,178.42,8.8524832]
[1729807430456,4.38,178.48,178.39,7.7522732]
[1729807430608,1.1688,178.46,178.38,7.7522732]
[1729807430815,7.7522732,178.43,178.38,7.7522732]
[1729807431009,7.7522732,178.43,178.38,8.8739432]
[1729807431409,7.7522732,178.45,178.39,7.7522732]
[1729807431604,4.38,178.48,178.42,7.7522732]
[1729807431809,7.7522732,178.47,178.42,7.7522732]
[1729807432008,7.7522732,178.47,178.42,8.8524832]
[1729807432712,2.8032,178.45,178.42,3.8524832]
[1729807433113,4.38,178.48,178.42,1.10021]
[1729807433414,2.4127,178.51,178.42,1.10021]
[1729807433717,7.7522732,178.5,178.45,7.7522732]
[1729807434020,7.7522732,178.49,178.44,7.7522732]
[1729807434317,2.803,178.46,178.44,1.10021]
[1729807434707,2.8031,178.45,178.44,1.10021]
[1729807434915,7.7522732,178.46,178.4,7.7522732]
[1729807435118,2.7522732,178.46,178.4,8.8738832]
[1729807435317,2.7522732,178.46,178.41,7.7522732]
[1729807435617,2.7522732,178.46,178.41,2.7522732]
[1729807436009,2.8034,178.44,178.41,3.8525432]
[1729807436314,2.8034,178.44,178.39,4.0500432]
[1729807436615,2.8034,178.44,178.41,7.7522732]
[1729807436815,1.1679,178.5,178.39,5.1502532]
[1729807437015,7.7522732,178.46,178.41,7.7522732]
[1729807437213,7.7522732,178.45,178.41,1.10021]
[1729807437619,5.5558732,178.45,178.41,1.10021]
[1729807437818,7.7522732,178.46,178.41,3.8524832]
[1729807438210,2.7522732,178.46,178.41,4.9526932]
[1729807438610,2.7522732,178.46,178.39,1.1987364]
[1729807438814,2.7522732,178.46,178.41,7.7522732]
[1729807439014,0.5556732,178.46,178.41,7.7522732]
[1729807439313,0.5556732,178.46,178.41,2.7522732]
[1729807439615,5.5555732,178.45,178.41,1.10021]
[1729807440205,7.7522732,178.43,178.41,1.10021]
[1729807440409,4.38,178.47,178.36,4.38]
[1729807440410,4.38,178.47,178.36,7.7522732]
[1729807440610,7.7522732,178.42,178.37,7.7522732]
[1729807440915,5.5561732,178.42,178.37,7.7522732]
[1729807441108,5.5561732,178.42,178.37,1.12167]
[1729807441313,5.5561732,178.42,178.37,7.7522732]
[1729807441518,2.8042,178.39,178.35,12.0922732]
[1729807442013,7.7522732,178.4,178.32,1.1628]
[1729807442216,4.38,178.43,178.33,14.9371732]
[1729807442217,2.8043,178.38,178.33,14.9371732]
[1729807442814,2.8045,178.36,178.32,11.7201732]
[1729807443111,2.4996,178.42,178.29,12.1322732]
[1729807443421,2.805,178.34,178.3,7.7522732]
[1729807443619,7.7522732,178.35,178.3,7.7522732]
[1729807444019,4.38,178.41,178.3,7.7522732]
[1729807444226,7.7522732,178.36,178.3,7.7522732]
[1729807444817,7.7522732,178.36,178.31,7.7522732]
[1729807445019,2.8047,178.35,178.31,7.7522732]
[1729807445316,2.8047,178.35,178.3,7.7522732]
[1729807445317,7.7522732,178.35,178.3,7.7522732]
[1729807445621,2.805,178.34,178.3,7.7522732]
[1729807446316,2.805,178.34,178.3,8.8525432]
[1729807446715,4.38,178.41,178.3,8.8525432]
[1729807446716,4.38,178.36,178.3,1.10027]
[1729807446915,3.7298,178.42,178.29,1.10024]
[1729807446916,4.38,178.35,178.29,1.10024]
[1729807447121,7.7522732,178.32,178.26,8.9359732]
[1729807447417,12.1322732,178.39,178.31,7.7522732]
[1729807447616,12.1322732,178.39,178.33,7.7522732]
[1729807447924,12.1322732,178.39,178.33,8.8744732]
[1729807448125,2.8043,178.38,178.33,11.6793732]
[1729807448324,12.1322732,178.39,178.33,8.8744732]
[1729807449018,2.8044,178.37,178.33,8.8744732]
[1729807449422,12.1322732,178.39,178.33,8.8744732]
[1729807449720,7.7522732,178.41,178.36,7.7522732]
[1729807450022,4.38,178.43,178.38,7.7522732]
[1729807450423,4.38,178.43,178.38,8.8744732]
[1729807451023,7.7522732,178.4,178.37,1.1222]
[1729807451221,5.5892,178.43,178.33,4.38]
[1729807451420,7.7522732,178.37,178.33,5.5022]
[1729807451620,7.7522732,178.38,178.33,13.2544732]
[1729807451923,10.5567732,178.37,178.33,13.2544732]
[1729807452118,7.7522732,178.36,178.33,1.1222]
[1729807452319,16.5072558,178.39,178.33,1.1222]
[1729807452624,12.1272558,178.36,178.31,1.1222]
[1729807452818,12.1272558,178.36,178.28,6.7469]
[1729807453223,2.8048,178.34,178.29,2.8056]
[1729807453423,4.38,178.39,178.3,12.1272558]
[1729807453819,2.8047,178.36,178.3,14.9326558]
[1729807454019,2.8047,178.36,178.3,13.2494558]
[1729807454232,4.38,178.39,178.3,13.2494558]
[1729807455028,2.8048,178.35,178.3,3.9276]
[1729807455221,12.1272558,178.33,178.3,1.1222]
[1729807455428,12.1272558,178.33,178.28,1.1222]
[1729807455623,2.8054,178.31,178.27,1.1222]
[1729807455830,2.8054,178.31,178.27,1.10027]
[1729807456320,2.8054,178.31,178.28,4.92243416]
[1729807457428,2.805,178.34,178.28,8.82840416]
[1729807457624,4.38,178.35,178.28,6.02270416]
[1729807457924,12.1272558,178.37,178.28,6.02270416]
[1729807458120,1.2067,178.42,178.28,6.02270416]
[1729807458121,4.38,178.38,178.3,12.1272558]
[1729807458323,4.38,178.4,178.3,13.2275258]
[1729807458532,12.1272558,178.37,178.3,1.10027]
[1729807459116,12.1272558,178.34,178.29,1.10027]
[1729807459621,12.1272558,178.34,178.29,1.1223]
[1729807460225,2.8052,178.32,178.29,1.1223]
[1729807460422,12.1272558,178.32,178.28,1.1223]
[1729807460829,2.806,178.27,178.23,1.1223]
[1729807461026,2.806,178.27,178.22,2.8067]
[1729807461027,2.806,178.27,178.22,3.929]
[1729807461228,2.806,178.27,178.22,2.8067]
[1729807461430,14.9332558,178.27,178.22,2.8067]
[1729807461629,14.9332558,178.27,178.22,3.90697]
[1729807461830,12.1272558,178.27,178.22,1.10027]
[1729807462332,12.1272558,178.33,178.22,1.10027]
[1729807462530,4.38,178.32,178.24,12.1272558]
[1729807463034,2.8056,178.29,178.24,16.0335858]
[1729807463330,5.5692,178.35,178.27,12.1272558]
[1729807463534,4.38,178.35,178.3,2.8055]
[1729807464130,5.5578,178.39,178.32,2.8052]
[1729807464331,5.5578,178.39,178.3,1.09993]
[1729807464631,5.5578,178.39,178.31,12.1272558]
[1729807465234,2.8045,178.37,178.31,14.9325558]
[1729807465435,2.8045,178.37,178.31,16.0324858]
[1729807466137,1.1725,178.44,178.31,16.0324858]
[1729807466138,16.5072558,178.42,178.33,12.1272558]
[1729807466436,5.5525,178.44,178.33,20.48817784]
[1729807466739,24.94074784,178.44,178.33,1.09993]
[1729807466927,24.94074784,178.44,178.33,1.12198]
[1729807467325,2.8044,178.38,178.33,1.10024]
[1729807468339,2.8047,178.35,178.33,1.10024]
[1729807468741,4.38,178.4,178.33,1.10024]
[1729807469533,2.8045,178.37,178.33,1.10024]
[1729807469731,19.38824784,178.42,178.33,1.10024]
[1729807470040,4.38,178.41,178.33,1.10024]
[1729807470244,2.8043,178.38,178.33,3.90524]
[1729807470439,19.38824784,178.42,178.33,3.90524]
[1729807470440,19.38824784,178.44,178.33,1.10024]
[1729807470636,1.2236,178.45,178.33,20.48848784]
[1729807470845,5.6036,178.45,178.33,20.48848784]
[1729807471036,2.8036,178.42,178.37,2.8043]
[1729807471338,2.8036,178.42,178.37,1.10024]
[1729807472139,2.8036,178.42,178.37,3.90454]
[1729807472742,22.19244784,178.38,178.37,1.10024]
[1729807473040,4.38,178.4,178.31,1.12192]
[1729807473245,19.38824784,178.38,178.28,10.8356]
[1729807473544,19.38824784,178.38,178.28,9.15182]
[1729807473742,4.38,178.39,178.28,9.13017]
[1729807474347,2.8044,178.37,178.31,2.8053]
[1729807474549,2.8044,178.37,178.31,3.90557]
[1729807474845,2.8044,178.37,178.32,2.8051]
[1729807475048,2.8044,178.37,178.32,3.90537]
[1729807476036,19.38824784,178.42,178.32,5.48027]
[1729807476241,4.38,178.43,178.32,5.48027]
[1729807476446,4.38,178.43,178.32,24.86851784]
[1729807476848,2.8039,178.4,178.32,24.86851784]
[1729807477747,2.8039,178.4,178.34,2.8048]
[1729807478049,2.8041,178.39,178.34,2.8048]
[1729807478247,2.8041,178.39,178.34,3.90507]
[1729807486748,8.4037,178.58,178.34,1.10027]
[1729807486952,4.38,178.51,178.38,19.38824784]
[1729807487150,19.38824784,178.5,178.39,4.38]
[1729807487343,20.55504784,178.5,178.39,4.38]
[1729807487652,2.8032,178.45,178.4,2.8039]
[1729807487947,2.8035,178.43,178.39,5.48027]
[1729807488149,19.38824784,178.47,178.39,5.48027]
[1729807488460,23.76824784,178.47,178.39,5.50161]
[1729807488646,2.8037,178.42,178.39,5.48021]
[1729807489041,2.8037,178.42,178.39,1.10021]
[1729807489246,2.8034,178.43,178.39,1.10021]
[1729807491753,23.76824784,178.47,178.4,1.40224965]
[1729807491955,2.8031,178.45,178.41,2.8037]
[1729807492155,4.38,178.49,178.4,6.88245965]
[1729807492654,2.3241,178.5,178.41,1.2574]
[1729807493158,2.3241,178.5,178.41,2.35761]
[1729807493952,21.71234784,178.5,178.41,2.35761]
[1729807494157,21.71234784,178.5,178.41,2.37872]
[1729807494759,2.8032,178.45,178.41,2.35755]
[1729807494961,21.71234784,178.5,178.41,2.35755]
[1729807495558,2.803,178.46,178.41,5.16115]
[1729807497373,2.8033,178.45,178.41,5.16115]
[1729807497669,26.09234784,178.5,178.41,2.35755]
[1729807499477,2.8032,178.45,178.41,2.35755]
[1729807499673,26.09234784,178.5,178.4,1.10009]
[1729807499871,1.1517,178.49,178.4,1.10009]
[1729807500367,2.8036,178.42,178.4,1.10009]
[1729807500572,2.8036,178.42,178.37,2.8043]
[1729807501276,4.38,178.46,178.36,9.31555861]
[1729807501476,2.8031,178.46,178.38,19.38824784]
[1729807501669,5.5317,178.49,178.38,19.38824784]
[1729807501974,2.803,178.46,178.42,2.8035]
[1729807502968,2.803,178.46,178.41,12.11034554]
[1729807503275,2.8034,178.44,178.39,2.8039]
[1729807503473,12.11034554,178.47,178.38,4.38]
[1729807503774,5.5317,178.49,178.38,16.49034554]
[1729807504073,2.8031,178.45,178.38,16.49034554]
[1729807504774,2.8033,178.45,178.4,2.8039]
[1729807505675,2.8033,178.44,178.4,3.90399]
[1729807508081,2.8033,178.44,178.4,1.10009]
[1729807508875,2.8037,178.41,178.36,12.11034554]
[1729807509072,16.49034554,178.45,178.36,16.49034554]
[1729807509273,16.49034554,178.45,178.36,17.61201554]
[1729807509471,16.49034554,178.45,178.36,20.41641554]
[1729807509472,2.8039,178.41,178.36,20.41641554]
[1729807509672,2.8039,178.41,178.36,20.39483554]
[1729807510283,2.8039,178.4,178.36,20.39483554]
[1729807511871,2.8043,178.38,178.36,1.10009]